fUST/lending_fUST_20250830
["ID","MTS","AMOUNT","RATE_DAILY","PERIOD"]
[382129608,1756512639118,-1000.0,0.0002497,2]
[382129609,1756512639127,-969.13987466,0.0002497,2]
[382129759,1756512651900,291.23098881,0.000199,2]
[382129762,1756512652247,291.23098872,0.00021389,2]
[382129763,1756512652765,291.23098872,0.00022879,2]
[382129787,1756512818776,279.00545351,0.000199,2]
[382129789,1756512819036,279.00545343,0.00021389,2]
[382129791,1756512819293,279.00545343,0.00022879,2]
[382129818,1756512935957,235.560346,0.00023794,2]
[382129831,1756513007435,251.10490829,0.000199,2]
[382129832,1756513007495,251.10490808,0.00022879,2]
[382129836,1756513008189,251.10490808,0.00021389,2]
[382129862,1756513174955,263.01801532,0.00021389,2]
[382129865,1756513175966,263.01801561,0.000199,2]
[382129877,1756513325351,161.05274,0.00013699,2]
[382129882,1756513359331,245.48348112,0.000199,2]
[382129884,1756513359742,245.48348096,0.00021389,2]
[382129895,1756513529365,228.74206887,0.000199,2]
[382129896,1756513529632,228.74206868,0.00022879,2]
[382129897,1756513530228,228.74206868,0.00021389,2]
[382129925,1756513671633,647.51848788,0.00018,2]
[382129931,1756513703703,243.75878001,0.000199,2]
[382129936,1756513728167,27364.89018952,0.00019063,2]
[382129977,1756513832016,-2478.11682452,0.00024657,2]
[382129980,1756513832074,-636.16497065,0.00024657,2]
[382129981,1756513832086,-929.91379421,0.00024657,2]
[382129982,1756513832133,-334.12768291,0.00024657,2]
[382129983,1756513832143,-137.68116343,0.00024697,2]
[382130007,1756513837971,-162.31883657,0.00024697,2]
[382130009,1756513837981,-300.0,0.00024697,2]
[382130011,1756513837990,-300.0,0.00024697,2]
[382130013,1756513837999,-37.68116343,0.00024697,2]
[382130021,1756513838069,-262.31883657,0.00024697,2]
[382130023,1756513838079,-1200.0,0.00024697,2]
[382130025,1756513838088,-603.88,0.00024699,2]
[382130027,1756513838097,-2594.00119096,0.000247,2]
[382130029,1756513838107,-35617.38721851,0.000247,2]
[382130032,1756513838116,-2594.00119096,0.0002475,2]
[382130033,1756513838125,-500.0,0.00024773,2]
[382130035,1756513838134,-500.0,0.00024773,2]
[382130038,1756513838144,-368.95975832,0.00024773,2]
[382130039,1756513838153,-500.0,0.00024773,2]
[382130041,1756513838162,-500.0,0.00024788,2]
[382130044,1756513838172,-500.0,0.00024788,2]
[382130046,1756513838181,-438.30649425,0.00024788,2]
[382130047,1756513838190,-500.0,0.00024788,2]
[382130049,1756513838200,-337.96203977,0.00024788,2]
[382130051,1756513838210,-420.54,0.0002479,3]
[382130053,1756513838219,-1022.79,0.0002479,10]
[382130055,1756513838229,-259.41143311,0.00024799,2]
[382130058,1756513838238,-370000.0,0.000248,2]
[382130060,1756513838248,-793.6019636,0.000248,2]
[382130062,1756513838257,-2594.00119096,0.000248,2]
[382130064,1756513838266,-7302.74507488,0.000248,2]
[382130066,1756513838276,-2594.00119096,0.0002485,2]
[382130068,1756513838285,-151.0,0.000249,7]
[382130070,1756513838294,-151.0,0.000249,7]
[382130072,1756513838303,-151.0,0.000249,7]
[382130074,1756513838312,-151.0,0.000249,7]
[382130076,1756513838322,-151.0,0.000249,7]
[382130078,1756513838331,-2594.00119096,0.000249,2]
[382130080,1756513838341,-165426.666631,0.000249,2]
[382130081,1756513838352,-151.0,0.000249,7]
[382130084,1756513838362,-151.0,0.000249,7]
[382130086,1756513838372,-151.567649,0.000249,7]
[382130088,1756513838383,-20678.3333289,0.00024963,2]
[382130090,1756513838392,-912.84313436,0.00024963,2]
[382130092,1756513838401,-500.0,0.0002497,2]
[382130094,1756513838410,-872.41464096,0.0002497,2]
[382130096,1756513838419,-151.0,0.0002497,7]
[382130098,1756513838429,-151.0,0.0002497,7]
[382130100,1756513838439,-151.0,0.0002497,7]
[382130102,1756513838448,-151.0,0.0002497,7]
[382130103,1756513838459,-151.0,0.0002497,7]
[382130106,1756513838469,-151.0,0.0002497,7]
[382130108,1756513838478,-502.05494152,0.00024973,2]
[382130110,1756513838487,-501.11028575,0.00024973,2]
[382130111,1756513838497,-500.0,0.00024973,2]
[382130113,1756513838505,-500.0,0.00024973,2]
[382130115,1756513838514,-500.0,0.00024973,2]
[382130117,1756513838524,-500.0,0.00024973,2]
[382130119,1756513838533,-500.0,0.00024973,2]
[382130121,1756513838543,-500.0,0.00024973,2]
[382130123,1756513838553,-500.0,0.00024973,2]
[382130125,1756513838563,-500.0,0.00024973,2]
[382130127,1756513838572,-500.0,0.00024973,2]
[382130129,1756513838581,-500.0,0.00024973,2]
[382130131,1756513838591,-310.28792753,0.00024973,2]
[382130133,1756513838600,-223.07154621,0.00024973,2]
[382130135,1756513838609,-500.0,0.00024973,2]
[382130137,1756513838619,-500.0,0.00024973,2]
[382130140,1756513838628,-500.0,0.00024973,2]
[382130141,1756513838639,-500.0,0.00024973,2]
[382130143,1756513838650,-526.40357111,0.00024973,2]
[382130145,1756513838659,-500.0,0.00024973,2]
[382130147,1756513838668,-500.0,0.00024973,2]
[382130149,1756513838678,-500.0,0.00024973,2]
[382130150,1756513838687,-500.0,0.00024973,2]
[382130151,1756513838697,-500.0,0.00024973,2]
[382130152,1756513838705,-355.80338343,0.00024973,2]
[382130153,1756513838715,-501.78163042,0.00024973,2]
[382130154,1756513838724,-500.0,0.00024973,2]
[382130155,1756513838733,-500.0,0.00024973,2]
[382130156,1756513838743,-500.0,0.00024973,2]
[382130157,1756513838752,-500.0,0.00024973,2]
[382130158,1756513838761,-500.0,0.00024973,2]
[382130159,1756513838770,-500.0,0.00024973,2]
[382130160,1756513838779,-265.34813812,0.00024973,2]
[382130161,1756513838789,-500.0,0.00024973,2]
[382130162,1756513838799,-500.0,0.00024973,2]
[382130163,1756513838808,-500.0,0.00024973,2]
[382130164,1756513838817,-162.0962263,0.00024973,2]
[382130165,1756513838826,-500.0,0.00024973,2]
[382130166,1756513838835,-500.0,0.00024973,2]
[382130167,1756513838844,-500.0,0.00024973,2]
[382130169,1756513838853,-501.24569332,0.00024973,2]
[382130171,1756513838862,-151.0,0.00024973,7]
[382130173,1756513838871,-151.0,0.00024973,7]
[382130175,1756513838881,-151.0,0.00024973,2]
[382130177,1756513838891,-151.0,0.00024973,2]
[382130178,1756513838900,-151.0,0.00024973,2]
[382130181,1756513838909,-151.0,0.00024973,2]
[382130182,1756513838920,-151.0,0.00024973,2]
[382130184,1756513838930,-151.0,0.00024973,2]
[382130186,1756513838939,-153.62565634,0.00024973,2]
[382130188,1756513838949,-702.03603718,0.00024973,2]
[382130190,1756513838958,-2808.14414872,0.00024973,2]
[382130193,1756513838968,-6312.00601029,0.00024973,2]
[382130195,1756513838980,-500.0,0.00024973,2]
[382130197,1756513838989,-151.0,0.00024973,7]
[382130198,1756513838998,-151.0,0.00024973,7]
[382130200,1756513839008,-151.0,0.00024973,7]
[382130202,1756513839017,-151.0,0.0002498,7]
[382130204,1756513839026,-151.0,0.0002498,7]
[382130207,1756513839036,-151.0,0.0002498,7]
[382130209,1756513839045,-151.0,0.0002498,7]
[382130211,1756513839054,-151.0,0.0002498,7]
[382130213,1756513839063,-151.48383882,0.0002498,7]
[382130215,1756513839073,-151.0,0.0002498,7]
[382130217,1756513839082,-267.657014,0.0002498,7]
[382130219,1756513839091,-151.0,0.0002498,7]
[382130221,1756513839100,-151.0,0.0002498,7]
[382130223,1756513839109,-151.0,0.0002498,7]
[382130225,1756513839117,-228.897525,0.0002498,7]
[382130227,1756513839127,-228.897525,0.0002498,7]
[382130229,1756513839136,-228.897525,0.0002498,7]
[382130231,1756513839145,-228.897525,0.0002498,7]
[382130233,1756513839154,-228.897525,0.0002498,7]
[382130235,1756513839163,-228.897525,0.0002498,7]
[382130237,1756513839172,-228.897525,0.0002498,7]
[382130239,1756513839182,-228.897525,0.0002498,7]
[382130241,1756513839191,-151.0,0.0002498,7]
[382130243,1756513839200,-151.0,0.0002498,7]
[382130245,1756513839209,-151.0,0.0002498,7]
[382130247,1756513839218,-151.0,0.0002498,7]
[382130249,1756513839227,-151.0,0.0002498,7]
[382130251,1756513839236,-151.0,0.0002498,7]
[382130253,1756513839245,-151.0,0.0002498,7]
[382130255,1756513839254,-151.0,0.0002498,7]
[382130256,1756513839264,-151.0,0.0002498,7]
[382130258,1756513839274,-151.0,0.0002498,7]
[382130260,1756513839284,-2295.31690582,0.0002498,2]
[382130263,1756513839293,-151.0,0.0002498,7]
[382130265,1756513839303,-151.0,0.0002498,7]
[382130267,1756513839312,-20403.00664023,0.0002498,2]
[382130336,1756513840122,-1138.30649425,0.0002498,2]
[382133594,1756513876224,235.63348731,0.00021389,2]
[382133595,1756513876257,235.63348743,0.000199,2]
[382133596,1756513876360,235.63348731,0.00022879,2]
[382133696,1756513962855,235.560346,0.0002383,2]
[382133698,1756514046646,211.405176,0.00021389,2]
[382133699,1756514047321,211.40517624,0.000199,2]
[382133700,1756514047412,211.405176,0.00022879,2]
[382133711,1756514219023,380.55844848,0.000199,2]
[382133712,1756514219251,380.55844848,0.00022985,2]
[382133718,1756514287802,90000.0,0.00022,5]
[382133721,1756514386656,345.17650228,0.000199,2]
[382133722,1756514386845,345.17650228,0.00022985,2]
[382133725,1756514541725,155.193057,0.0002397,2]
[382133726,1756514557095,299.22102006,0.000199,2]
[382133727,1756514557525,299.22102006,0.00022985,2]
[382133731,1756514609559,29000.0,0.00031032,60]
[382133733,1756514703330,150.9,0.0002405,2]
[382133734,1756514704005,161.05274,0.00013699,2]
[382133735,1756514725464,382.0180556,0.000199,2]
[382133736,1756514725651,382.0180556,0.00022985,2]
[382133740,1756514910961,330.62358722,0.000199,2]
[382133741,1756514911176,330.62358722,0.00022985,2]
[382133828,1756515038246,-1000.0,0.000245,2]
[382133830,1756515038255,-2672.55195089,0.00024565,2]
[382133832,1756515038265,-899.31889304,0.00024565,2]
[382133834,1756515038276,-1200.0,0.00024611,2]
[382133836,1756515038286,-1200.0,0.00024622,2]
[382133838,1756515038295,-300.0,0.00024623,2]
[382133840,1756515038304,-300.0,0.00024623,2]
[382133842,1756515038314,-2672.55195086,0.00024624,2]
[382133843,1756515038323,-420.54,0.00024638,3]
[382133844,1756515038332,-1472.82,0.00024638,10]
[382133845,1756515038342,-1227.35,0.00024638,10]
[382133846,1756515038352,-1022.79,0.00024638,10]
[382133847,1756515038361,-351.20655926,0.00024647,2]
[382133848,1756515038371,-500.0,0.00024647,2]
[382133849,1756515038382,-500.0,0.00024647,2]
[382133850,1756515038392,-500.0,0.00024647,2]
[382133851,1756515038402,-500.0,0.00024647,2]
[382133852,1756515038412,-500.0,0.00024647,2]
[382133853,1756515038423,-603.07340624,0.00024647,2]
[382133854,1756515038436,-540.03806255,0.00024647,2]
[382133855,1756515038447,-500.0,0.00024647,2]
[382133856,1756515038457,-500.0,0.00024647,2]
[382133857,1756515038467,-526.01724799,0.00024647,2]
[382133858,1756515038476,-500.0,0.00024647,2]
[382133859,1756515038486,-500.0,0.00024647,2]
[382133860,1756515038498,-500.0,0.00024647,2]
[382133861,1756515038508,-500.0,0.00024647,2]
[382133862,1756515038519,-500.0,0.00024647,2]
[382133863,1756515038531,-500.0,0.00024647,2]
[382133864,1756515038542,-500.0,0.00024647,2]
[382133865,1756515038552,-500.0,0.00024647,2]
[382133866,1756515038562,-500.0,0.00024647,2]
[382133867,1756515038573,-500.0,0.00024647,2]
[382133868,1756515038583,-500.0,0.00024647,2]
[382133869,1756515038593,-500.0,0.00024647,2]
[382133870,1756515038603,-221.97119683,0.00024647,2]
[382133871,1756515038613,-500.0,0.00024647,2]
[382133872,1756515038622,-275.97599797,0.00024647,2]
[382133873,1756515038632,-500.0,0.00024647,2]
[382133874,1756515038641,-216.27237682,0.00024647,2]
[382133875,1756515038651,-500.0,0.00024647,2]
[382133876,1756515038661,-500.0,0.00024647,2]
[382133877,1756515038672,-151757.27204671,0.00024648,2]
[382133878,1756515038682,-561.0,0.00024665,7]
[382133879,1756515038694,-500.0,0.00024673,2]
[382133880,1756515038703,-368.95975832,0.00024673,2]
[382133881,1756515038714,-500.0,0.00024673,2]
[382133882,1756515038726,-500.0,0.00024673,2]
[382133883,1756515038736,-500.0,0.00024673,2]
[382133884,1756515038746,-526.40357111,0.00024673,2]
[382133885,1756515038756,-500.0,0.00024673,2]
[382133886,1756515038766,-500.0,0.00024673,2]
[382133887,1756515038775,-500.0,0.00024673,2]
[382133888,1756515038785,-501.11028575,0.00024673,2]
[382133889,1756515038794,-500.0,0.00024673,2]
[382133890,1756515038803,-500.0,0.00024673,2]
[382133891,1756515038812,-500.0,0.00024673,2]
[382133892,1756515038822,-500.0,0.00024673,2]
[382133893,1756515038831,-500.0,0.00024673,2]
[382133894,1756515038840,-162.0962263,0.00024673,2]
[382133895,1756515038849,-500.0,0.00024673,2]
[382133896,1756515038858,-500.0,0.00024673,2]
[382133897,1756515038867,-501.78163042,0.00024673,2]
[382133898,1756515038876,-500.0,0.00024673,2]
[382133899,1756515038886,-500.0,0.00024673,2]
[382133900,1756515038894,-500.0,0.00024673,2]
[382133901,1756515038904,-355.80338343,0.00024673,2]
[382133902,1756515038913,-265.34813812,0.00024673,2]
[382133903,1756515038922,-500.0,0.00024673,2]
[382133904,1756515038931,-2672.55195086,0.00024683,2]
[382133905,1756515038940,-500.0,0.00024685,2]
[382133906,1756515038949,-500.0,0.00024685,2]
[382133907,1756515038959,-500.0,0.00024689,2]
[382133908,1756515038968,-500.0,0.0002469,3]
[382133909,1756515038977,-2000.0,0.00024696,2]
[382133910,1756515038987,-603.88,0.00024698,2]
[382133911,1756515038996,-370000.0,0.000247,2]
[382133912,1756515039006,-443.5996161,0.000247,2]
[382133913,1756515039015,-793.6019636,0.000247,2]
[382133914,1756515039025,-2672.55195086,0.00024741,2]
[382133915,1756515039034,-304.0,0.00024791,2]
[382133916,1756515039043,-10954.1176123,0.000248,2]
[382133917,1756515039058,-2672.55195086,0.000248,2]
[382133918,1756515039067,-500.0,0.00024873,2]
[382133919,1756515039076,-500.0,0.00024873,2]
[382133920,1756515039085,-500.0,0.00024873,2]
[382133921,1756515039095,-500.0,0.00024873,2]
[382133922,1756515039104,-151.0,0.0002489,2]
[382133923,1756515039113,-151.0,0.0002489,2]
[382133924,1756515039123,-151.0,0.0002489,2]
[382133925,1756515039132,-151.0,0.0002489,2]
[382133926,1756515039142,-151.0,0.0002489,2]
[382133927,1756515039151,-151.0,0.0002489,2]
[382133928,1756515039161,-151.48383882,0.0002489,2]
[382133929,1756515039170,-151.0,0.0002489,2]
[382133930,1756515039179,-4564.2156718,0.0002489,2]
[382133931,1756515039188,-4590.97683754,0.000249,2]
[382133932,1756515039198,-345.88,0.000249,2]
[382133933,1756515039208,-151.0,0.000249,7]
[382133934,1756515039218,-151.0,0.000249,7]
[382133935,1756515039228,-151.0,0.000249,2]
[382133936,1756515039238,-151.0,0.000249,2]
[382133937,1756515039247,-151.0,0.000249,2]
[382133938,1756515039257,-151.0,0.000249,2]
[382133939,1756515039267,-151.0,0.000249,2]
[382133940,1756515039277,-151.0,0.000249,2]
[382133941,1756515039286,-151.0,0.000249,2]
[382133942,1756515039298,-153.62565634,0.000249,2]
[382133943,1756515039308,-151.567649,0.000249,7]
[382133944,1756515039318,-151.0,0.000249,7]
[382133945,1756515039327,-151.0,0.000249,7]
[382133946,1756515039337,-151.0,0.000249,7]
[382133947,1756515039346,-151.0,0.000249,7]
[382133948,1756515039356,-82825.7857611,0.000249,2]
[382133949,1756515039369,-110189.5033858,0.000249,2]
[382133950,1756515039380,-1099.8,0.000249,2]
[382133951,1756515039396,-358.7200018,0.000249,2]
[382133987,1756515077974,331.95447816,0.000199,2]
[382133988,1756515078285,331.95447816,0.00022985,2]
[382133989,1756515189947,232.30643258,0.00023812,2]
[382133992,1756515268083,345.33534738,0.000199,2]
[382133993,1756515268391,345.33534738,0.00022985,2]
[382133994,1756515434570,337.7959631,0.000199,2]
[382133995,1756515434662,337.79596295,0.00022879,2]
[382133996,1756515435012,337.79596295,0.00021389,2]
[382133998,1756515622945,304.0163668,0.000199,2]
[382133999,1756515623047,304.01636665,0.00022879,2]
[382134000,1756515623400,304.01636665,0.00021389,2]
[382134001,1756515748501,161.05274,0.00013699,2]
[382134004,1756515796864,346.01845255,0.000199,2]
[382134005,1756515797071,346.01845246,0.00022879,2]
[382134006,1756515797882,346.01845246,0.00021389,2]
[382134011,1756515950997,3612.0,0.0002,7]
[382134014,1756515980636,322.2029404,0.000199,2]
[382134015,1756515981142,322.20294012,0.00021389,2]
[382134016,1756515981493,322.20294012,0.00022879,2]
[382134021,1756516128139,2626.93042709,0.00022953,4]
[382134023,1756516146706,289.97905114,0.000199,2]
[382134024,1756516147013,289.979051,0.00021389,2]
[382134025,1756516147276,289.979051,0.00022879,2]
[382134028,1756516175230,596.0,0.00023974,2]
[382134030,1756516179606,596.0,0.00023855,2]
[382134047,1756516232506,-289.979051,0.00024368,2]
[382134048,1756516232517,-579.35600333,0.00024371,2]
[382134099,1756516238375,-319.96288971,0.00024371,2]
[382134100,1756516238386,-834.03711029,0.000244,2]
[382134101,1756516238399,-165.96288971,0.000244,2]
[382134102,1756516238408,-168.0,0.00024441,2]
[382134103,1756516238419,-260.86355267,0.00024448,2]
[382134104,1756516238543,-3427.68361456,0.00024448,2]
[382134105,1756516238553,-300.0,0.00024458,2]
[382134106,1756516238564,-300.0,0.00024458,2]
[382134107,1756516238574,-1200.0,0.00024458,2]
[382134108,1756516238584,-36770.10545177,0.00024459,2]
[382134109,1756516238593,-1200.0,0.00024471,2]
[382134110,1756516238602,-603.88,0.00024498,2]
[382134111,1756516238612,-500.0,0.00024533,2]
[382134112,1756516238621,-500.0,0.00024533,2]
[382134113,1756516238630,-420.54,0.00024538,3]
[382134114,1756516238640,-500.0,0.00024543,2]
[382134115,1756516238649,-500.0,0.00024543,2]
[382134116,1756516238658,-603.07340624,0.00024543,2]
[382134117,1756516238668,-500.0,0.00024543,2]
[382134118,1756516238678,-500.0,0.00024543,2]
[382134119,1756516238688,-500.0,0.00024543,2]
[382134120,1756516238700,-500.0,0.00024543,2]
[382134121,1756516238710,-500.0,0.00024543,2]
[382134122,1756516238720,-500.0,0.00024543,2]
[382134123,1756516238730,-500.0,0.00024543,2]
[382134124,1756516238739,-500.0,0.00024543,2]
[382134125,1756516238749,-500.0,0.00024543,2]
[382134126,1756516238758,-500.0,0.00024543,2]
[382134127,1756516238767,-500.0,0.00024543,2]
[382134128,1756516238776,-500.0,0.00024543,2]
[382134129,1756516238786,-500.0,0.00024543,2]
[382134130,1756516238795,-500.0,0.00024543,2]
[382134131,1756516238804,-526.01724799,0.00024543,2]
[382134132,1756516238813,-540.03806255,0.00024543,2]
[382134133,1756516238823,-216.27237682,0.00024543,2]
[382134134,1756516238832,-500.0,0.00024543,2]
[382134135,1756516238841,-500.0,0.00024543,2]
[382134136,1756516238851,-500.0,0.00024543,2]
[382134137,1756516238860,-500.0,0.00024543,2]
[382134138,1756516238870,-500.0,0.00024543,2]
[382134139,1756516238879,-214.08966313,0.00024543,2]
[382134140,1756516238890,-300.0,0.00024543,2]
[382134141,1756516238900,-363.30132981,0.00024543,2]
[382134142,1756516238909,-500.0,0.00024543,2]
[382134143,1756516238918,-500.0,0.00024543,2]
[382134144,1756516238928,-500.0,0.00024543,2]
[382134145,1756516238937,-4218.71270176,0.00024546,2]
[382134146,1756516238946,-245.84459149,0.00024547,2]
[382134147,1756516238956,-370000.0,0.00024548,2]
[382134148,1756516238965,-3688.54716722,0.00024559,2]
[382134149,1756516238974,-500.0,0.00024573,2]
[382134150,1756516238984,-500.0,0.00024573,2]
[382134151,1756516238994,-500.0,0.00024573,2]
[382134152,1756516239003,-355.80338343,0.00024573,2]
[382134153,1756516239012,-500.0,0.00024573,2]
[382134154,1756516239022,-501.24569332,0.00024573,2]
[382134155,1756516239031,-500.0,0.00024573,2]
[382134156,1756516239042,-500.0,0.00024573,2]
[382134157,1756516239052,-500.0,0.00024636,2]
[382134158,1756516239062,-3688.54716722,0.00024669,2]
[382134159,1756516239071,-597.0,0.00024685,2]
[382134160,1756516239081,-262.71245385,0.00024762,2]
[382134161,1756516239091,-3688.54716722,0.0002478,2]
[382134162,1756516239100,-345.88,0.000248,2]
[382134163,1756516239109,-24001.6334888,0.000248,2]
[382134164,1756516239118,-304.0,0.00024813,2]
[382134165,1756516239128,-500.0,0.00024847,2]
[382134166,1756516239138,-500.0,0.00024873,2]
[382134167,1756516239147,-500.0,0.00024873,2]
[382134168,1756516239156,-500.0,0.00024873,2]
[382134169,1756516239170,-500.0,0.00024873,2]
[382134170,1756516239179,-501.78163042,0.00024873,2]
[382134171,1756516239188,-500.0,0.00024873,2]
[382134172,1756516239197,-500.0,0.00024873,2]
[382134173,1756516239207,-500.0,0.00024873,2]
[382134174,1756516239217,-162.0962263,0.00024873,2]
[382134175,1756516239226,-168.0,0.00024882,2]
[382134176,1756516239237,-3688.54716722,0.0002489,2]
[382134177,1756516239247,-1201.87783498,0.00024897,2]
[382134178,1756516239256,-151.0,0.000249,7]
[382134179,1756516239265,-151.0,0.000249,7]
[382134180,1756516239275,-151.0,0.000249,7]
[382134181,1756516239284,-151.0,0.000249,7]
[382134182,1756516239294,-151.0,0.000249,7]
[382134183,1756516239304,-151.0,0.000249,7]
[382134184,1756516239314,-151.48383882,0.000249,7]
[382134185,1756516239323,-151.0,0.000249,7]
[382134186,1756516239332,-151.0,0.000249,7]
[382134187,1756516239341,-151.0,0.000249,7]
[382134188,1756516239350,-151.0,0.000249,7]
[382134189,1756516239360,-151.0,0.000249,7]
[382134190,1756516239369,-151.0,0.000249,7]
[382134191,1756516239378,-151.0,0.000249,2]
[382134192,1756516239387,-151.0,0.000249,7]
[382134193,1756516239397,-153.62565634,0.000249,7]
[382134194,1756516239407,-1000.0,0.000249,2]
[382134195,1756516239416,-120312.134678,0.000249,2]
[382134196,1756516239425,-173.80946416,0.000249,2]
[382134197,1756516239435,-500.0,0.0002491,2]
[382134198,1756516239445,-3000.0,0.00024962,2]
[382134199,1756516239455,-15039.0168348,0.00024963,2]
[382134200,1756516239464,-3000.2041861,0.00024963,2]
[382134201,1756516239474,-500.0,0.00024973,2]
[382134202,1756516239483,-500.0,0.00024973,2]
[382134203,1756516239493,-500.0,0.00024973,2]
[382134204,1756516239503,-500.0,0.00024973,2]
[382134205,1756516239513,-500.0,0.00024973,2]
[382134206,1756516239522,-500.0,0.00024973,2]
[382134207,1756516239533,-500.0,0.00024973,2]
[382134208,1756516239542,-500.0,0.00024973,2]
[382134209,1756516239551,-526.40357111,0.00024973,2]
[382134210,1756516239560,-501.11028575,0.00024973,2]
[382134211,1756516239570,-500.0,0.00024973,2]
[382134212,1756516239579,-500.0,0.00024973,2]
[382134213,1756516239588,-265.34813812,0.00024973,2]
[382134214,1756516239598,-500.0,0.00024973,2]
[382134215,1756516239608,-368.95975832,0.00024973,2]
[382134216,1756516239619,-500.0,0.00024973,2]
[382134217,1756516239630,-500.0,0.00024973,2]
[382134218,1756516239639,-500.0,0.00024973,2]
[382134219,1756516239649,-634.58764763,0.00024973,2]
[382134220,1756516239663,-500.0,0.00024973,2]
[382134221,1756516239673,-500.0,0.00024973,2]
[382134222,1756516239684,-500.0,0.00024973,2]
[382134223,1756516239694,-500.0,0.00024973,2]
[382134224,1756516239705,-500.0,0.00024973,2]
[382134225,1756516239714,-500.0,0.00024973,2]
[382134226,1756516239725,-500.0,0.00024973,2]
[382134227,1756516239736,-501.92982423,0.00024973,2]
[382134228,1756516239745,-500.0,0.00024973,2]
[382134229,1756516239944,-1439.78890669,0.00024973,2]
[382134230,1756516239963,-5759.15562676,0.00024973,2]
[382134231,1756516239972,-872.41464096,0.0002498,2]
[382134232,1756516239981,-253.653,0.0002498,8]
[382134234,1756516239991,-30078.0336696,0.0002498,2]
[382134235,1756516240001,-6000.4083722,0.0002498,2]
[382134236,1756516240010,-4590.97683754,0.0002499,2]
[382134237,1756516240019,-433.19720158,0.0002499,2]
[382134445,1756516246601,-1042.883856,0.00024538,10]
[382134489,1756516313310,327.42076195,0.000199,2]
[382134490,1756516313469,327.42076192,0.00021389,2]
[382134491,1756516313573,327.42076192,0.00022879,2]
[382134492,1756516321783,1780.46844408,0.00021708,2]
[382134494,1756516506122,294.67868596,0.000199,2]
[382134495,1756516506339,294.67868572,0.00022879,2]
[382134496,1756516506953,294.67868572,0.00021389,2]
[382134497,1756516631885,161.05274,0.00013699,2]
[382134499,1756516673985,265.20579467,0.000199,2]
[382134500,1756516674163,265.20579459,0.00022879,2]
[382134501,1756516674665,265.20579459,0.00021389,2]
[382134502,1756516847054,265.87545236,0.000199,2]
[382134503,1756516847153,265.87545236,0.00021389,2]
[382134504,1756516847260,265.87545236,0.00022879,2]
[382134505,1756516989849,155.0,0.00027397,120]
[382134506,1756517006428,168.0,0.00023529,2]
[382134507,1756517015634,168.0,0.00023535,2]
[382134509,1756517040598,239.28790724,0.000199,2]
[382134510,1756517040840,239.28790712,0.00021389,2]
[382134511,1756517040951,239.28790712,0.00022879,2]
[382134538,1756517225527,215.35056215,0.00021389,2]
[382134539,1756517225926,215.35056233,0.000199,2]
[382134540,1756517226179,215.35056215,0.00022879,2]
[382134578,1756517405198,159.98964545,0.0002405,2]
[382134580,1756517407282,201.81300463,0.000199,2]
[382134581,1756517407495,201.81300444,0.00021389,2]
[382134582,1756517407751,201.81300444,0.00022879,2]
[382134612,1756517432562,-265.0,0.00024102,2]
[382134613,1756517432575,-265.0,0.00024177,2]